Cogmind - Beta 15 @@@ ROGUE MODE // 2025.07.10 @ 21:42:19 Player: StaticNoob Result: Destroyed by H-66 Slayer with Gauss Rifle Performance ------------- Evolutions (5) 2500 Regions Visited (16) 3200 Robots Destroyed (185) 925 Value Destroyed (6414) 6414 Prototype IDs (57) 1140 Alien Tech Used (0) 0 Bonus (4003) 4003 TOTAL SCORE: 18182 Bonus ------- High Alert Combat Kills 33 Follower Combat Kills 1888 Network Hubs Disabled 200 Registered with UFD 300 Met Optimus in HQ 500 Built Enhanced Grunts 300 A7 Reached Mainframe 300 Met R17 at Cetus 500 Friendly Fire -18 Cogmind --------- Core Integrity 0/1000 Matter 239/300 Energy 78/100 System Corruption 15% Temperature Cool (0) Movement Core (50) Location -5/Factory Parts ------- > --- POWER (2) -------- (None) > --- PROPULSION (6) --- (None) > --- UTILITY (7) ------ Advanced Sensor Array Improved Signal Interpreter Advanced Melee Analysis Suite Hacking Suite Improved Hacking Suite Advanced Hacking Suite > --- WEAPON (2) ------- Kinetic Spear > --- INVENTORY (5) ---- Neutrino Core Light Regenerative Plating Kinetic Spear Peak State ------------ > --- POWER ------------ Light Fission Core Quantum Reactor > --- PROPULSION ------- Centrium Heavy Treads Centrium Heavy Treads Centrium Heavy Treads > --- UTILITY ---------- Improved Sensor Array Improved Signal Interpreter Centrium Medium Armor Plating Light Regenerative Plating Improved Hacking Suite Improved Hacking Suite Improved System Shield > --- WEAPON ----------- Advanced KE Penetrator Advanced KE Penetrator > --- INVENTORY -------- Gravmag System Gravmag System Gravmag System Cooled Gravmag System Heavy Rocket Launcher [Rating: 122] Favorites ----------- Power Quantum Reactor Engine Improved Ion Engine Power Core Light Nuclear Core Reactor Quantum Reactor Propulsion Light Treads Treads Light Treads Leg Carbon-fiber Leg Wheel Wheel Hover Unit Gravmag System Flight Unit Improved VTOL Module Utility Hacking Suite Device Experimental Sensor Array Storage Large Storage Unit Processor Improved Signal Interpreter Hackware Hacking Suite Protection Light Regenerative Plating Weapon Advanced KE Penetrator Energy Gun Beamcaster Energy Cannon Plasma Cannon Ballistic Gun Advanced KE Penetrator Ballistic Cannon Light Cannon Launcher Grenade Launcher Special Weapon Junk Cannon Impact Weapon Heavy Mace Slashing Weapon Power Sword Piercing Weapon Kinetic Spear Build | -11 -10 -10 -9 -9 -8 -8 -8 -8 -6 -6 -6 -6 -6 -5 -5 -5 ------- Run | Yrd Mat Min Mat Min Mat Sto Rec Scr Fac Ext Cet Arc Hub Fac Was Fac Slots Evolved 10 | . . . 2 . 2 . . . 4 . . . . 2 . . Power 1 | . . . . . . . . . . . . . . 1 . . Propulsion 4 | . . . . . 2 . . . 2 . . . . . . . Utility 5 | . . . 2 . . . . . 2 . . . . 1 . . Weapon . | . . . . . . . . . . . . . . . . . Parts Attached 204 | 6 7 4 22 4 17 18 3 6 9 48 12 11 1 31 2 3 Power 31 | 1 2 . 4 . 3 3 1 2 3 7 1 . . 3 1 . Engine 16 | 1 2 . 4 . 1 3 1 . . 4 . . . . . . Core 11 | . . . . . 2 . . 2 2 3 . . . 2 . . Reactor 4 | . . . . . . . . . 1 . 1 . . 1 1 . Propulsion 72 | 2 2 1 9 . 12 8 . . 2 21 3 . . 10 1 1 Treads 25 | 2 2 1 8 . 3 3 . . . 3 3 . . . . . Leg 23 | . . . . . 8 . . . . 14 . . . . . 1 Wheel 4 | . . . . . 1 . . . . 3 . . . . . . Hover 6 | . . . . . . . . . . . . . . 6 . . Flight 14 | . . . 1 . . 5 . . 2 1 . . . 4 1 . Utility 49 | 1 2 1 5 . . 2 . 2 3 9 3 10 1 9 . 1 Device 19 | . 1 . . . . 1 . 2 1 3 . 5 1 4 . 1 Storage 4 | 1 1 . 1 . . . . . . . 1 . . . . . Processor 7 | . . 1 3 . . . . . . 2 . . . 1 . . Hackware 12 | . . . 1 . . . . . 2 1 . 5 . 3 . . Protection 7 | . . . . . . 1 . . . 3 2 . . 1 . . Artifact . | . . . . . . . . . . . . . . . . . Weapon 52 | 2 1 2 4 4 2 5 2 2 1 11 5 1 . 9 . 1 Energy Gun 8 | . . . 1 . 1 3 . . . 2 1 . . . . . Energy Cannon 4 | . . . . . . . 1 . . . 1 . . 2 . . Ballistic Gun 17 | 2 . 2 1 3 1 1 . . . 3 3 1 . . . . Ballistic Cannon 8 | . . . 1 . . . . . . 5 . . . 1 . 1 Launcher 6 | . 1 . 1 1 . 1 . . . 1 . . . 1 . . Special Weapon 1 | . . . . . . . . 1 . . . . . . . . Impact Weapon 4 | . . . . . . . 1 1 . . . . . 2 . . Slashing Weapon 1 | . . . . . . . . . 1 . . . . . . . Piercing Weapon 3 | . . . . . . . . . . . . . . 3 . . Special Melee Weapon . | . . . . . . . . . . . . . . . . . Unidentified Prototypes 15 | . . . . . . 3 . 1 1 . 6 . . 4 . . Corrupted Parts 7 | . . . . . . . . . . 1 6 . . . . . System Corruption 46 | . . . . . . . . . . 6 40 . . . . . Parts Lost 87 | . 1 . 8 1 8 15 1 . . 31 2 . . 6 1 13 Power 12 | . 1 . 1 . . 2 . . . 4 . . . 1 . 3 Propulsion 43 | . . . 4 . 6 6 . . . 15 2 . . 2 1 7 Utility 7 | . . . . . . . . . . 4 . . . 2 . 1 Weapon 25 | . . . 3 1 2 7 1 . . 8 . . . 1 . 2 Highest Loss Streak 11 | . 1 . 6 1 2 7 1 . . 6 2 . . 3 1 11 To Critical Strikes 2 | . . . . . . . . . . . 2 . . . . . Average Backups 7 | 1 5 9 11 14 14 10 5 4 3 4 4 4 5 4 4 4 Power . | . 1 2 1 1 1 . . . . . . . . . . 1 Propulsion 1 | . 1 3 3 4 4 3 . . . . . . 3 2 . . Utility 2 | . . 1 3 4 4 4 5 4 3 3 2 2 1 . 1 1 Weapon 2 | . 2 3 3 5 4 1 . . . . 1 1 1 1 3 2 Tool/Special . | . . . . . . . . . . . . . . . . . Unused Backups 20 | . . . 6 1 2 4 . 1 . 3 2 . . 1 . . Power 2 | . . . . . 1 1 . . . . . . . . . . Propulsion 5 | . . . 2 . . 3 . . . . . . . . . . Utility 8 | . . . 2 1 1 . . 1 . 1 1 . . 1 . . Weapon 5 | . . . 2 . . . . . . 2 1 . . . . . Tool/Special . | . . . . . . . . . . . . . . . . . Average Slot Usage (%) 91 | . 100 100 98 100 97 92 99 100 88 89 74 79 79 76 82 76 Engine 5 | . 14 14 10 11 4 7 9 1 . 2 . . . . 2 2 Core 1 | . . . . . 4 1 . 8 6 1 . . . 1 2 . Reactor 1 | . . . . . . . . . . . 5 6 6 5 2 4 Treads 13 | . 28 28 21 22 14 10 . . . 2 18 20 20 10 . . Leg 4 | . . . . . 18 10 . . . 13 3 . . . . . Flight 8 | . . . . . . 11 36 36 28 15 . . . 3 22 17 Device 4 | . 14 7 . . . 2 9 17 13 2 . 4 5 5 5 5 Storage 4 | . 14 14 11 11 9 6 . . . . . . . . . . Processor 12 | . . 6 21 22 18 18 18 9 6 7 13 13 6 6 11 11 Hackware 13 | . . . 10 11 9 9 9 9 19 20 20 19 20 16 23 22 Protection 2 | . . . . . . . . . . 6 6 1 6 8 . . Energy Gun 1 | . . . 3 . . 7 8 . . 1 . . . . . . Ballistic Gun 10 | . 27 28 11 21 17 6 . . . 1 5 13 13 6 . . Ballistic Cannon 1 | . . . 7 . . . . . . 3 . . . . . . Peak Build Rating 122 | 6 9 10 20 23 29 45 46 51 65 68 104 110 111 122 76 78 Average Rating 47 | 5 8 8 16 22 26 31 44 45 54 51 91 104 110 97 71 67 On Entrance 48 | . 6 9 8 20 23 29 44 44 46 65 54 104 109 111 69 76 Naked Turns . | . . . . . . . . . . . . . . . . . Heaviest Build 54 | 12 20 20 33 33 35 36 18 19 26 35 39 39 40 54 23 23 Greatest Support 240 | 40 40 40 40 40 80 80 20 20 32 100 240 240 240 240 24 24 Greatest Overweight (x) 10 | 1 . . 1 . 10 8 4 . . 8 . . . 3 1 6 Average Overweight (x) . | . . . . . . . 1 . . . . . . . . . Largest Inventory Capacity 15 | 8 10 10 15 15 15 15 5 5 5 5 5 5 5 5 5 5 Average Capacity 8 | 6 8 10 13 15 15 11 5 5 5 5 5 5 5 5 5 5 Most Carried 15 | 2 9 10 15 15 15 15 5 5 5 5 5 5 5 5 5 5 Average Carried 7 | 1 5 9 11 14 14 10 5 4 3 4 4 4 4 4 4 4 Final Capacity 15 | 8 10 10 15 15 15 5 5 5 5 5 5 5 5 5 5 5 Final Carried 15 | 2 9 10 15 15 15 5 5 5 4 5 5 5 5 5 5 3 Class Distribution -------------------- 37% | Scavenger-Mutant 29% | Mutant 10% | Hacker-Mutant 6% | Hacker-Sprinter 4% | Hacker-Scout 3% | Commander-Mutant 3% | Commander-Sprinter Dominant Class ---------------- Mutant | -10/Materials Mutant | -10/Mines Mutant | -9/Materials Mutant | -9/Mines Scavenger-Mutant | -8/Materials Commander-Sprinter | -8/Storage Commander-Mutant | -8/Recycling Scout | -8/Scraptown Hacker-Scout | -6/Factory Hacker-Mutant | -6/Extension Scavenger-Mutant | -6/Cetus Scavenger-Mutant | -6/Archives Scavenger-Mutant | -6/Hub_04(d) Scavenger-Mutant | -5/Factory Hacker-Sprinter | -5/Waste Hacker-Sprinter | -5/Factory Resources | -11 -10 -10 -9 -9 -8 -8 -8 -8 -6 -6 -6 -6 -6 -5 -5 -5 ----------- Run | Yrd Mat Min Mat Min Mat Sto Rec Scr Fac Ext Cet Arc Hub Fac Was Fac Matter Collected 6174 | 300 216 188 554 399 758 409 49 120 . 1309 339 535 147 535 316 . Remotely 4 | . . . . . . . . . . 4 . . . . . . Salvage Created 6603 | 132 330 38 941 276 1222 433 32 . . 1419 504 351 161 720 . 44 Parts 353 | 11 22 5 71 20 63 13 1 . . 52 22 26 12 33 . 2 Haulers Intercepted 6 | . . . 4 . 1 1 . . . . . . . . . . Recyclers Shooed 2 | . . . 1 . . . . . . . . . . 1 . . Parts Field Recycled 20 | . . . . . . . . . . 20 . . . . . . Retrieved Matter 98 | . . . . . . . . . . 98 . . . . . . Parts Self-Destructed . | . . . . . . . . . . . . . . . . . Prevented . | . . . . . . . . . . . . . . . . . Kills | -11 -10 -10 -9 -9 -8 -8 -8 -8 -6 -6 -6 -6 -6 -5 -5 -5 ------- Run | Yrd Mat Min Mat Min Mat Sto Rec Scr Fac Ext Cet Arc Hub Fac Was Fac Combat Hostiles Destroyed 132 | . 14 3 28 16 18 10 1 . . 20 6 1 2 12 . 1 Melee 8 | . . . . . . . . . . 7 . . . 1 . . Guns 63 | . 8 3 12 2 18 5 1 . . 2 2 1 2 7 . . Cannons 15 | . . . 6 . . . . . . 8 . . . 1 . . AOE 41 | . 6 . 10 14 . 5 . . . 1 1 . . 3 . 1 Classes Destroyed 16 | 2 3 . 5 1 . 1 1 . . 3 . . . . . . Worker 6 | . . . 1 . 3 1 . . . 1 . . . . . . Builder 6 | . . . 2 . . . . . . 2 . . 1 1 . . Tunneler 5 | 4 . . 1 . . . . . . . . . . . . . Hauler 6 | . . . 4 . 1 1 . . . . . . . . . . Recycler 7 | 1 . . . 1 2 . . . . 2 . . . 1 . . Operator 10 | . . . 1 . . . . . . . . 8 . 1 . . Watcher 12 | . 1 . 5 . 1 . . . . 1 2 . 1 1 . . Swarmer 41 | . 9 3 15 10 . . . . . . . . . 4 . . Grunt 55 | . 5 . 5 5 15 9 . . . 11 . . 1 4 . . Brawler 1 | . . . . . . 1 . . . . . . . . . . Duelist 1 | . . . . . . . . . . 1 . . . . . . Sentry 17 | . . . 8 . 3 . . . . 4 . 1 . 1 . . Demolisher 1 | . . . . 1 . . . . . . . . . . . . Hunter 6 | . . . . . . . . . . 3 . . 1 1 . 1 Programmer 3 | . . . . . . . 1 . . . . . . 2 . . Behemoth 1 | . . . . . . . . . . 1 . . . . . . Cetus Guard 6 | . . . . . . . . . . . 6 . . . . . Guerrilla 1 | . . . . . . . . . . 1 . . . . . . Best Kill Streak 9 | 4 6 3 7 9 6 6 1 . . 4 5 4 2 5 . 1 Combat Bots Only 9 | . 6 3 6 9 4 4 1 . . 4 4 1 1 4 . 1 Max Kills in Single Turn 7 | 1 4 1 4 7 1 6 1 . . 2 2 1 1 2 . 1 Gunslinging 1 | . 1 . . . . 1 . . . . . . . . . . Exploded 7 | . 4 . 4 7 . 4 . . . 1 1 . . 2 . 1 Melee 1 | . . . . . . . . . . 1 . . . 1 . . Uniques/NPCs Destroyed . | . . . . . . . . . . . . . . . . . Combat | -11 -10 -10 -9 -9 -8 -8 -8 -8 -6 -6 -6 -6 -6 -5 -5 -5 -------- Run | Yrd Mat Min Mat Min Mat Sto Rec Scr Fac Ext Cet Arc Hub Fac Was Fac Hostile Shots Fired 1273 | . 74 31 158 24 124 146 6 . 27 371 26 12 38 147 . 89 Missed 379 | . 30 9 37 6 29 42 2 . 16 115 7 5 7 40 . 34 Hits 894 | . 44 22 121 18 95 104 4 . 11 256 19 7 31 107 . 55 Melee 4 | . . . . . . . . . . 4 . . . . . . Projectile 890 | . 44 22 121 18 95 104 4 . 11 252 19 7 31 107 . 55 AOE 10 | . . . . 4 . . . . . . . . . . . 6 Critical Strikes 29 | . 1 . 2 . 6 5 1 . . 6 4 . 1 3 . . Damage Taken 14301 | . 497 173 1597 244 1479 1637 61 . 107 3952 429 166 555 1804 22 1578 Core 2468 | . 74 37 217 36 214 293 . . 31 511 25 24 . 114 11 881 Absorbed by Shields 185 | . . . . . . . . . . 79 106 . . . . . Regen/Repaired (Parts) 706 | . . . . . . . . . . 497 16 . . 186 7 . Core Remaining (%) 45 | 100 . 55 . 36 . . . 7 . . . . 30 . . . Volleys Fired 525 | 8 37 9 97 16 84 24 5 . 2 100 19 45 9 65 . 5 Largest 2 | 2 2 2 2 2 2 2 2 . 1 2 2 2 2 2 . 1 Hottest 134 | 40 40 40 86 86 94 134 105 . 80 96 115 70 70 116 . 55 Shots Fired 896 | 16 71 18 183 31 167 44 6 . 2 130 21 80 19 103 . 5 Gun 693 | 16 68 18 118 22 167 38 5 . . 37 16 80 19 89 . . Cannon 164 | . . . 56 1 . . . . 2 90 . . . 12 . 3 Launcher 39 | . 3 . 9 8 . 6 1 . . 3 5 . . 2 . 2 Special . | . . . . . . . . . . . . . . . . . Kinetic 780 | 16 68 18 152 22 154 21 . . . 114 15 80 19 98 . 3 Thermal 74 | . . . 22 1 13 17 5 . 2 13 1 . . . . . Explosive 31 | . 3 . 9 8 . 6 1 . . . . . . 2 . 2 Electromagnetic 11 | . . . . . . . . . . 3 5 . . 3 . . Robot Hit Streak 23 | 3 8 5 13 7 23 10 13 . . 9 11 7 7 7 . 1 Robot Miss Streak 7 | 3 3 1 6 2 4 3 . . . 5 4 7 3 4 . 2 Penetration Max 1 | . . . . . . . . . . 1 . . 1 1 . . Secondary Targets 11 | . 3 . 1 1 4 1 . . . . 1 . . . . . Max Gunslinging Chain 1 | . 1 . 1 1 1 1 . . . . 1 . . . . . Shots Hit Robots 585 | 9 43 12 118 18 124 30 6 . . 106 9 40 9 59 . 2 Core Hits 324 | 6 22 3 64 23 49 29 2 . . 64 12 16 7 25 . 2 Critical Kills 18 | . . . . . 1 . . . . 7 1 5 2 2 . . Critical Parts Destroyed 25 | . . . 1 . 1 . . . . 13 . 2 1 7 . . Critical Strikes 56 | . . . 6 . 2 . 1 . . 26 1 7 3 10 . . Burn 2 | . . . 1 . . . 1 . . . . . . . . . Destroy 45 | . . . 1 . 2 . . . . 23 1 7 3 8 . . Blast 5 | . . . 4 . . . . . . . . . . 1 . . Smash 1 | . . . . . . . . . . . . . . 1 . . Sever 3 | . . . . . . . . . . 3 . . . . . . Melee Attacks 107 | . . . . . . . . . 25 43 . . . 13 2 24 Impact 21 | . . . . . . . . . 16 . . . . 5 . . Slashing 52 | . . . . . . . . . 9 43 . . . . . . Piercing 34 | . . . . . . . . . . . . . . 8 2 24 Sneak Attacks 7 | . . . . . . . . . . 5 . . . 1 . 1 Combat Hostiles 1 | . . . . . . . . . . 1 . . . . . . Follow-up Attacks . | . . . . . . . . . . . . . . . . . Damage Inflicted 17220 | 126 935 141 2459 1266 2172 1242 151 . . 3631 857 1153 295 2414 . 378 Guns 8686 | 126 596 141 815 198 2172 517 134 . . 564 195 1153 295 1780 . . Cannons 2301 | . . . 632 . . . . . . 1385 . . . 238 . 46 Explosions 4578 | . 334 . 964 1060 . 725 17 . . 376 662 . . 212 . 228 Melee 1540 | . . . . . . . . . . 1281 . . . 155 . 104 Ramming 115 | . 5 . 48 8 . . . . . 25 . . . 29 . . Kinetic 9960 | 126 596 141 1230 184 2023 223 . . . 1803 158 1153 295 1982 . 46 Thermal 1589 | . . . 330 14 149 294 134 . . 146 284 . . 124 . 114 Explosive 3189 | . 334 . 851 1060 . 725 17 . . . . . . 88 . 114 Electromagnetic 827 | . . . . . . . . . . 376 415 . . 36 . . Impact 155 | . . . . . . . . . . . . . . 155 . . Slashing 1281 | . . . . . . . . . . 1281 . . . . . . Piercing 104 | . . . . . . . . . . . . . . . . 104 Highest Corruption 49 | . . . 1 1 . 2 2 . . 9 49 49 18 3 15 15 Average Corruption 13 | . . . 1 1 . 2 2 . . 4 44 32 18 2 8 15 Corruption Purged 31 | . . . . . . . . . . . . 31 . . . . Corruption Blocked . | . . . . . . . . . . . . . . . . . Effects 198 | . . . 2 9 . 3 11 . . 20 38 52 28 14 5 16 Message Errors 45 | . . . 1 2 . . 5 . . 4 15 7 3 4 1 3 Matter Fused 53 | . . . 1 3 . 3 4 . . 6 7 12 7 4 2 4 Heat Flow Errors 23 | . . . . 1 . . 2 . . 2 4 8 1 2 1 2 Energy Discharges 21 | . . . . 2 . . . . . 2 2 9 4 1 . 1 Parts Rejected 4 | . . . . . . . . . . 1 . 1 1 . 1 . Parts Fused 4 | . . . . . . . . . . 1 . 1 2 . . . Data Loss (minor) 20 | . . . . . . . . . . 2 5 3 4 2 . 4 Data Loss (major) 3 | . . . . . . . . . . . 1 . 2 . . . Misfires 3 | . . . . 1 . . . . . . . . 2 . . . Alerts 6 | . . . . . . . . . . 1 1 1 . 1 . 2 Misdirections 2 | . . . . . . . . . . . 1 . 1 . . . Weapon Failures 14 | . . . . . . . . . . 1 2 10 1 . . . Overload Shots . | . . . . . . . . . . . . . . . . . Overflow Damage 578 | . . . 179 43 . . . . . 162 . . . 125 . 69 Projectiles 34 | . . . 10 . . . . . . 24 . . . . . . Explosions 212 | . . . 169 43 . . . . . . . . . . . . Melee 332 | . . . . . . . . . . 138 . . . 125 . 69 Knockbacks 17 | . . . 3 . . . . . . 6 . . . 8 . . Impact 4 | . . . . . . . . . . 1 . . . 3 . . Kinetic 11 | . . . 3 . . . . . . 5 . . . 3 . . Secondary 2 | . . . . . . . . . . . . . . 2 . . Self-Inflicted Damage 315 | . 29 . 189 17 . 33 . . . 28 8 . . 11 . . Shots 12 | . 2 . 3 2 . 1 . . . 2 1 . . 1 . . Rammed 20 | . 1 . 11 2 . 1 1 . . 1 . . . 3 . . Targets Rammed 22 | . 1 . 12 2 . 1 1 . . 2 . . . 3 . . Kicked 1 | . . . . . . . . . . 1 . . . . . . Crushed 1 | . . . 1 . . . . . . . . . . . . . Highest Temperature 532 | . 9 . 108 103 367 409 170 . 57 532 250 270 161 443 142 236 Average Temperature 93 | . 2 . 21 14 68 160 78 . 22 103 96 116 86 143 95 96 Received Heat Transfer 3984 | . 186 . 201 27 936 738 . . 24 1248 18 18 9 423 . 156 Effects 17 | . . . . . 1 2 . . . 7 . . . 7 . . Shutdowns 7 | . . . . . 1 . . . . 1 . . . 5 . . Energy Bleed 2 | . . . . . . . . . . 1 . . . 1 . . Interference 2 | . . . . . . . . . . 2 . . . . . . Matter Decay 3 | . . . . . . 1 . . . 1 . . . 1 . . Short Circuit 1 | . . . . . . 1 . . . . . . . . . . Damage (minor) 2 | . . . . . . . . . . 2 . . . . . . Siege Activations . | . . . . . . . . . . . . . . . . . Martial Activations . | . . . . . . . . . . . . . . . . . Shielding Activations . | . . . . . . . . . . . . . . . . . Robots Disrupted . | . . . . . . . . . . . . . . . . . Combat Hostiles . | . . . . . . . . . . . . . . . . . Robots Corrupted 7 | . . . . . . . . . . 3 3 . . 1 . . Combat Hostiles 5 | . . . . . . . . . . 2 3 . . . . . Parts Fried 11 | . . . . . . . . . . 6 3 . . 2 . . Impact Corruptions 5 | . . . . . . . . . . 1 . . . 4 . . Robots Melted . | . . . . . . . . . . . . . . . . . Combat Hostiles . | . . . . . . . . . . . . . . . . . Parts Melted 5 | . . . 1 . . 1 . . . 1 . 2 . . . . Heat Transferred 2584 | . . . 679 37 296 539 259 . . 287 337 . . 100 . 50 Parts Sabotaged . | . . . . . . . . . . . . . . . . . Parts Stolen . | . . . . . . . . . . . . . . . . . Parts Stripped . | . . . . . . . . . . . . . . . . . Power Chain Reactions 2 | . . . . . . . . . . . 2 . . . . . Alert | -11 -10 -10 -9 -9 -8 -8 -8 -8 -6 -6 -6 -6 -6 -5 -5 -5 ------- Run | Yrd Mat Min Mat Min Mat Sto Rec Scr Fac Ext Cet Arc Hub Fac Was Fac Maximum Alert Level 2 | . 1 . 2 1 . 2 1 . . 1 1 . . 1 . . Low Security (%) 83 | 100 96 100 49 76 100 51 92 . 100 89 68 100 100 79 100 100 Level 1 14 | . 3 . 40 23 . 29 7 . . 10 31 . . 20 . . Level 2 2 | . . . 9 . . 19 . . . . . . . . . . Level 3 . | . . . . . . . . . . . . . . . . . Level 4 . | . . . . . . . . . . . . . . . . . Level 5 . | . . . . . . . . . . . . . . . . . High Security . | . . . . . . . . . . . . . . . . . Max Security . | . . . . . . . . . . . . . . . . . Peak Influence 552 | 10 213 60 504 242 86 552 236 . 20 272 252 187 143 288 167 152 Initial 197 | . . . . 136 50 . 197 . . 3 137 83 . 3 85 81 Average 93 | 1 39 10 207 137 33 212 161 . 1 49 160 73 41 85 123 50 Influence Increases 7515 | 25 394 123 1094 422 543 1019 365 . 66 984 485 266 279 675 142 633 Destroy 0b10 Robot/C 3700 | . 280 100 600 320 360 500 100 . . 560 220 80 80 240 . 260 Destroy 0b10 Robot/NC 290 | 25 5 . 75 5 35 15 . . . 35 10 40 15 20 . 10 Destroy Leader 714 | . 52 20 178 50 64 142 . . . 82 10 . 22 52 . 42 Allied During Kill 617 | . . 3 14 . . 160 15 . . 85 201 72 56 . . 11 Successful Hack 213 | . 27 . 15 . 7 14 26 . 28 22 8 . . 46 . 20 Select Force Hacks 260 | . . . . . . . 210 . . . . . 50 . . . Disable Machine 450 | . . . 60 . . 15 . . . 15 . 60 45 150 . 105 Destroy Structure 746 | . 30 . 92 47 2 53 14 . 23 35 21 14 11 122 142 140 Partial Spotted 45 | . . . . . . 15 . . . 15 . . . . . 15 Lose Combat Pursuer 480 | . . . 60 . 75 105 . . 15 135 15 . . 45 . 30 Influence Decreases 7396 | 25 394 123 743 642 674 512 644 228 58 746 522 475 271 438 270 631 Entered New Map 1275 | . . . . 215 81 . 310 228 . 5 109 126 . 5 160 36 Time Decay 3949 | 25 234 123 516 417 338 242 254 . 58 367 302 289 231 333 70 150 Lost Part 658 | . 10 . 76 10 74 130 10 . . 188 20 . . 60 10 70 Lost Ally 718 | . . . 1 . . 140 70 . . 95 91 60 40 40 30 151 Purge Threat 796 | . 150 . 150 . 181 . . . . 91 . . . . . 224 Squads Dispatched 35 | . 2 . 3 . 2 7 . . 6 3 1 . 2 6 . 3 Investigation 13 | . 1 . 1 . 1 1 . . 4 . 1 . 2 . . 2 Extermination 4 | . . . . . . . . . 2 . . . . 2 . . Reinforcement 14 | . 1 . 2 . 1 2 . . . 3 . . . 4 . 1 Assault 2 | . . . . . . 2 . . . . . . . . . . Garrison 2 | . . . . . . 2 . . . . . . . . . . Intercept . | . . . . . . . . . . . . . . . . . Searches Triggered . | . . . . . . . . . . . . . . . . . Construction Impeded 5 | . . . . . . . . . . 3 . . . 2 . . Haulers Reinforced 2 | . . . . . . . . . . . . . . 2 . . Active Scanning Responses . | . . . . . . . . . . . . . . . . . Cargo Convoy Interrupts . | . . . . . . . . . . . . . . . . . Stealth | -11 -10 -10 -9 -9 -8 -8 -8 -8 -6 -6 -6 -6 -6 -5 -5 -5 --------- Run | Yrd Mat Min Mat Min Mat Sto Rec Scr Fac Ext Cet Arc Hub Fac Was Fac Distress Signals 19 | . 1 . 4 . 3 1 . . . 3 2 . . 2 . 3 Communications Jammed . | . . . . . . . . . . . . . . . . . Distress Signals . | . . . . . . . . . . . . . . . . . Times Spotted 311 | . 21 5 46 22 30 39 3 4 16 43 13 24 8 21 5 11 Peak Tracking Total 11 | . 7 3 5 8 6 11 1 4 9 4 5 2 2 5 2 7 Tactical Retreats 24 | . . . 2 . 5 4 . . 1 7 1 . . 3 . 1 Traps | -11 -10 -10 -9 -9 -8 -8 -8 -8 -6 -6 -6 -6 -6 -5 -5 -5 ------- Run | Yrd Mat Min Mat Min Mat Sto Rec Scr Fac Ext Cet Arc Hub Fac Was Fac Traps Triggered 17 | . . . 2 . . 1 . . 3 8 . . . 3 . . Indirectly . | . . . . . . . . . . . . . . . . . Trap Hack Attempts . | . . . . . . . . . . . . . . . . . Triggered . | . . . . . . . . . . . . . . . . . Disarmed 4 | . . . . . . . . . . . . . . . . 4 Reprogrammed . | . . . . . . . . . . . . . . . . . Reused . | . . . . . . . . . . . . . . . . . Traps Extracted . | . . . . . . . . . . . . . . . . . Installed . | . . . . . . . . . . . . . . . . . Triggered . | . . . . . . . . . . . . . . . . . Machines | -11 -10 -10 -9 -9 -8 -8 -8 -8 -6 -6 -6 -6 -6 -5 -5 -5 ---------- Run | Yrd Mat Min Mat Min Mat Sto Rec Scr Fac Ext Cet Arc Hub Fac Was Fac Machines Disabled 33 | . . . 4 . . 1 . . . 3 1 4 3 10 . 7 Max in Single Turn 9 | . . . 3 . . 1 . . . 1 1 2 1 9 . 5 Garrison Access 3 | . . . . . . . . . 1 . . . . 1 . 1 Network Hub 1 | . . . . . . . . . . . . . 1 . . . Machines Repaired . | . . . . . . . . . . . . . . . . . Machines Dismantled . | . . . . . . . . . . . . . . . . . Machines Sabotaged 1 | . . . . . . . . . . . . . 1 . . . Overloaded Fab Kills . | . . . . . . . . . . . . . . . . . Hacking | -11 -10 -10 -9 -9 -8 -8 -8 -8 -6 -6 -6 -6 -6 -5 -5 -5 --------- Run | Yrd Mat Min Mat Min Mat Sto Rec Scr Fac Ext Cet Arc Hub Fac Was Fac Machines Accessed 99 | . 9 . 13 . 6 6 10 5 13 14 3 1 3 5 . 11 Terminals 60 | . 7 . 10 . 6 5 3 . 4 13 3 . 3 1 . 5 Fabricators 7 | . . . . . . . . . 5 . . . . 1 . 1 Repair Stations 2 | . . . . . . . . . . . . . . 1 . 1 Recycling Units 16 | . 2 . 1 . . . 7 . 3 1 . . . . . 2 Scanalyzers 2 | . . . 2 . . . . . . . . . . . . . Garrison Access 6 | . . . . . . 1 . . 1 . . . . 2 . 2 Total Hacks 364 | . 27 . 38 . 19 21 34 34 34 43 8 4 6 17 . 79 Successful 217 | . 13 . 18 . 11 6 20 34 18 31 3 4 2 8 . 49 Failed 143 | . 13 . 20 . 7 15 13 . 16 12 5 . 4 9 . 29 Catastrophic 20 | . 1 . 3 . 2 2 2 . 3 2 2 . 1 2 . . Database Lockouts 4 | . 1 . . . 1 . 1 . . . . . . . . 1 Manual 151 | . 8 . 20 . 5 11 12 . 24 25 1 . 6 6 . 33 Terminals 250 | . 23 . 32 . 19 19 13 . 16 41 8 . 6 8 . 65 Fabricators 14 | . . . . . . . . . 9 . . . . 3 . 2 Repair Stations 5 | . . . . . . . . . . . . . . 3 . 2 Recycling Units 43 | . 4 . 1 . . . 21 . 8 2 . . . . . 7 Scanalyzers 5 | . . . 5 . . . . . . . . . . . . . Garrison Access 9 | . . . . . . 2 . . 1 . . . . 3 . 3 Terminal Hacks 139 | . 9 . 10 . 10 6 7 34 4 17 3 4 . 4 . 31 Record 39 | . . . . . . . . 33 . . 2 4 . . . . Part Schematic 3 | . . . . . . . . . . 1 . . . . . 2 Robot Schematic 1 | . . . . . . . . . . . . . . . . 1 Robot Analysis 5 | . 2 . 1 . 1 . . . . 1 . . . . . . Prototype ID Bank 24 | . 1 . 3 . 2 2 7 . 2 3 . . . 1 . 3 Open Door 8 | . . . . . . 1 . . . 6 1 . . . . . Branch Access Points 3 | . 1 . . . . . . . . . . . . 1 . 1 Machine Index 1 | . . . . . . . . . . . . . . . . 1 Garrison Index 1 | . . . . . . . . . . . . . . 1 . . Alert Level 4 | . . . . . . 2 . . . 1 . . . . . 1 Unreport Threat 12 | . 1 . 1 . 3 . . . . 2 . . . . . 5 Locate Traps 13 | . 3 . 2 . 2 . . . . 1 . . . 1 . 4 Disarm Traps 2 | . . . . . . . . . . . . . . . . 2 Dispatch Records 2 | . . . . . . . . . . . . . . . . 2 Maintenance Status 1 | . . . . . . . . . . . . . . . . 1 Reinforcement Status 1 | . . . . . . . . . . . . . . . . 1 Recall Investigation 3 | . . . 1 . . . . . 1 1 . . . . . . Recall Extermination 1 | . . . . . . . . . 1 . . . . . . . Recall Reinforcements 2 | . . . . . . . . . . 1 . . . . . 1 Hauler Manifests 3 | . 1 . 1 . . . . . . . . . . . . 1 Registered Components 1 | . . . . . . . . . . . . . . . . 1 Registered Prototypes 1 | . . . . . . . . . . . . . . . . 1 Zone Layout 7 | . . . 1 . 2 1 . . . . . . . . . 3 Proto ID Catalog 1 | . . . . . . . . 1 . . . . . . . . Fabricator Hacks 4 | . . . . . . . . . 1 . . . . 1 . 2 Network Status 3 | . . . . . . . . . 1 . . . . 1 . 1 Build 1 | . . . . . . . . . . . . . . . . 1 Repair Station Hacks 2 | . . . . . . . . . . . . . . . . 2 Refit 2 | . . . . . . . . . . . . . . . . 2 Recycling Unit Hacks 15 | . 2 . 1 . . . 6 . 3 . . . . . . 3 Report Inventory 2 | . . . 1 . . . . . . . . . . . . 1 Retrieve Components 13 | . 2 . . . . . 6 . 3 . . . . . . 2 Scanalyzer 5 | . . . 5 . . . . . . . . . . . . . Insert Component 3 | . . . 3 . . . . . . . . . . . . . Analyze 2 | . . . 2 . . . . . . . . . . . . . Garrison Access Hacks 3 | . . . . . . . . . 1 . . . . 1 . 1 Seal Access 3 | . . . . . . . . . 1 . . . . 1 . 1 Unauthorized Hacks 49 | . 2 . 2 . 1 . 7 . 9 14 . . 2 2 . 10 Terminals 30 | . 2 . 2 . 1 . . . 2 12 . . 2 1 . 8 Track 3 | . . . . . . . . . . 2 . . . . . 1 Assimilate 3 | . . . . . . . . . 1 . . . . . . 2 Botnet 14 | . 2 . 2 . 1 . . . 1 3 . . 1 1 . 3 Operators 2 | . . . . . . . . . . 1 . . . . . 1 Skim 7 | . . . . . . . . . . 6 . . . . . 1 Sabotage 1 | . . . . . . . . . . . . . 1 . . . Fabricators 5 | . . . . . . . . . 4 . . . . 1 . . Fabnet 5 | . . . . . . . . . 4 . . . . 1 . . Repair Stations . | . . . . . . . . . . . . . . . . . Recycling Units 14 | . . . . . . . 7 . 3 2 . . . . . 2 Reject 1 | . . . . . . . . . . 1 . . . . . . Mask 1 | . . . . . . . . . . 1 . . . . . . Tunnel 7 | . . . . . . . 7 . . . . . . . . . Fedlink 5 | . . . . . . . . . 3 . . . . . . 2 Scanalyzers . | . . . . . . . . . . . . . . . . . Garrison Access . | . . . . . . . . . . . . . . . . . Data Cores Recovered 1 | . . . 1 . . . . . . . . . . . . . Used . | . . . . . . . . . . . . . . . . . Hacking Detections 74 | . 9 . 12 . 6 7 6 . 9 11 2 . 2 3 . 7 Full Trace Events 10 | . 1 . 1 . 1 1 3 . 1 . 1 . 1 . . . Feedback Events . | . . . . . . . . . . . . . . . . . Feedback Blocked 1 | . . . . . . . . . . . . . 1 . . . Robot Schematics Acquired 1 | . . . . . . . . . . . . . . . . 1 Robots Built . | . . . . . . . . . . . . . . . . . Authchips . | . . . . . . . . . . . . . . . . . Time . | . . . . . . . . . . . . . . . . . Total Robot Build Rating . | . . . . . . . . . . . . . . . . . Part Schematics Acquired 5 | . . . 2 . . . . . . 1 . . . . . 2 Parts Built 2 | . . . . . . . . . . . . . . . . 2 Authchips . | . . . . . . . . . . . . . . . . . Time 69 | . . . . . . . . . . . . . . . . 69 Total Part Build Rating 18 | . . . . . . . . . . . . . . . . 18 Parts Repaired . | . . . . . . . . . . . . . . . . . Time . | . . . . . . . . . . . . . . . . . Parts Recycled . | . . . . . . . . . . . . . . . . . Recycled Matter . | . . . . . . . . . . . . . . . . . Retrieved Matter . | . . . . . . . . . . . . . . . . . Retrieved Components 27 | . 11 . . . . . 10 . 3 . . . . . . 3 Parts Scanalyzed 2 | . . . 2 . . . . . . . . . . . . . Part Schematics Acquired 2 | . . . 2 . . . . . . . . . . . . . Parts Damaged . | . . . . . . . . . . . . . . . . . Bothacking | -11 -10 -10 -9 -9 -8 -8 -8 -8 -6 -6 -6 -6 -6 -5 -5 -5 ------------ Run | Yrd Mat Min Mat Min Mat Sto Rec Scr Fac Ext Cet Arc Hub Fac Was Fac Used RIF Installer . | . . . . . . . . . . . . . . . . . Robots Hacked 4 | . . . . . . . . . . . . . . 3 . 1 Non-combat . | . . . . . . . . . . . . . . . . . Combat 4 | . . . . . . . . . . . . . . 3 . 1 Robot Hacks Applied . | . . . . . . . . . . . . . . . . . Relay Couplers Released . | . . . . . . . . . . . . . . . . . Fabnet Peak Effective % 12 | . . . . . . . . . . . . . . 12 12 12 Autooverrided 4 | . . . . . . . . . . . . . . 3 . 1 Robots Rewired 13 | . . . . . . . 2 . . 11 . . . . . . Allies Hacked 1 | . . . . . . . 1 . . . . . . . . . Hacks Repelled . | . . . . . . . . . . . . . . . . . Allies | -11 -10 -10 -9 -9 -8 -8 -8 -8 -6 -6 -6 -6 -6 -5 -5 -5 -------- Run | Yrd Mat Min Mat Min Mat Sto Rec Scr Fac Ext Cet Arc Hub Fac Was Fac Total Allies 64 | . . 4 . . . 12 2 . . 18 5 . . 3 18 2 Largest Group 18 | . . 4 3 . . 10 5 . . 9 11 6 2 1 18 11 Highest-Rated Group 769 | . . 71 40 . . 173 73 . . 297 769 495 192 41 656 409 Highest-Rated Ally 159 | . . 31 16 . . 31 16 . . 159 159 159 96 41 50 50 Total Orders . | . . . . . . . . . . . . . . . . . Ally Attacks 549 | . . 5 27 . . 97 15 . . 85 53 33 16 7 147 64 Total Damage 15746 | . . 84 256 . . 1268 238 . . 1946 1508 1063 702 172 6544 1965 Kills 73 | . . 2 3 . . 16 5 . . 9 5 3 3 . 13 14 Allies Corrupted 1 | . . . . . . . 1 . . . . . . . . . Allies Melted . | . . . . . . . . . . . . . . . . . Intel | -11 -10 -10 -9 -9 -8 -8 -8 -8 -6 -6 -6 -6 -6 -5 -5 -5 ------- Run | Yrd Mat Min Mat Min Mat Sto Rec Scr Fac Ext Cet Arc Hub Fac Was Fac Active Infowar (turns) 6164 | . 915 322 97 . . 173 544 441 763 724 . . 607 1051 145 382 Sensors 4797 | . . . . . . 173 544 441 763 691 . . 607 1051 145 382 Terrain 1536 | . 915 322 97 . . . . 202 . . . . . . . . Structural 143 | . . . . . . . . 91 41 11 . . . . . . Jamming 33 | . . . . . . . . . 8 25 . . . . . . Robot Analysis Total 5 | . 2 . 1 . 1 . . . . 1 . . . . . . Derelict Logs Recovered 3 | . . 2 . 1 . . . . . . . . . . . . Drone Launches . | . . . . . . . . . . . . . . . . . Drone Recoveries . | . . . . . . . . . . . . . . . . . Exploration | -11 -10 -10 -9 -9 -8 -8 -8 -8 -6 -6 -6 -6 -6 -5 -5 -5 ------------- Run | Yrd Mat Min Mat Min Mat Sto Rec Scr Fac Ext Cet Arc Hub Fac Was Fac Turns Passed 14607 | 110 915 637 2116 1066 1032 560 544 441 763 2710 667 828 637 1054 145 382 Spaces Moved 10923 | 51 484 371 1058 629 503 510 431 1434 973 1857 365 215 243 940 242 617 Core 240 | 6 . . . . 4 3 153 . . 20 . . . . . 54 Treads 3961 | 45 484 371 1058 629 184 60 . . . 51 334 215 243 287 . . Legs 1189 | . . . . . 278 99 . . . 781 31 . . . . . Wheels 292 | . . . . . 37 . . . . 255 . . . . . . Hover 291 | . . . . . . . . . . . . . . 282 . 9 Flight 4950 | . . . . . . 348 278 1434 973 750 . . . 371 242 554 Fastest Speed 21 | 50 160 160 160 160 122 26 26 26 21 21 120 160 160 29 29 31 Average Speed 94 | 150 160 160 163 160 148 68 105 26 25 87 156 160 160 76 31 43 Slowest Speed 550 | 160 160 160 240 160 550 450 250 26 26 450 160 160 160 190 114 350 Overloaded Moves 20 | . . . . . . . . . . . . . . 20 . . Propulsion Burnouts . | . . . . . . . . . . . . . . . . . Robots Hopped 24 | . . . . . . 5 4 . 9 6 . . . . . . Potential Cave-ins . | . . . . . . . . . . . . . . . . . Cave-ins Triggered . | . . . . . . . . . . . . . . . . . Exploration Rate (%) 64 | 4 69 89 91 97 43 57 94 92 34 91 79 81 20 35 89 24 Regions Visited 16 Branch Regions 9 Pre-discovered Areas 14 | . . . . . . . 7 5 1 1 . . . . . . Known Exits Taken 13 | . 1 1 1 1 1 1 1 1 1 1 1 1 1 . . . Unknown Exits Taken 1 | 1 . . . . . . . . . . . . . . . . Scrap Searched 9 | . . 1 . 2 . . . 6 . . . . . . . . Spaces Dug 52 | . . . . . . . . . 23 . . . . 7 1 21 Terrain Destroyed 479 | . 29 . 88 74 . 56 14 . 23 24 26 17 4 64 1 59 Melee 52 | . . . . . . . . . 23 . . . . 7 1 21 Projectile 75 | . . . . . . . . . . 24 4 17 4 26 . . AOE 352 | . 29 . 88 74 . 56 14 . . . 22 . . 31 . 38 Terrain Rammed . | . . . . . . . . . . . . . . . . . Walls Destroyed . | . . . . . . . . . . . . . . . . . Machines Disabled . | . . . . . . . . . . . . . . . . . Actions | -11 -10 -10 -9 -9 -8 -8 -8 -8 -6 -6 -6 -6 -6 -5 -5 -5 --------- Run | Yrd Mat Min Mat Min Mat Sto Rec Scr Fac Ext Cet Arc Hub Fac Was Fac Total 14108 | 66 553 397 1279 658 650 672 507 1502 1438 2721 441 606 473 1146 309 690 Wait 1821 | . 15 12 41 . 32 93 53 47 379 460 12 325 217 41 58 36 Move 10864 | 50 483 370 1057 628 502 499 422 1433 956 1846 364 214 242 940 241 617 Hop 20 | . . . . . . 5 4 . 7 4 . . . . . . Pick Up 78 | 2 7 . 22 2 2 7 . 2 1 11 9 3 1 7 1 1 Fast Attach 142 | 6 . . 5 . 11 11 3 7 6 43 11 9 2 24 3 1 Attach 57 | . 2 . 7 1 3 12 . 1 2 13 3 1 . 9 1 2 Detach 17 | . . . 1 . 2 . . . 1 5 3 . . 3 1 1 Swap 73 | . 6 4 17 8 6 6 . 2 3 13 2 3 . 2 . 1 Drop 142 | . 2 2 20 1 8 14 2 10 5 25 18 6 2 21 3 3 Fire 525 | 8 37 9 97 16 84 24 5 . 2 100 19 45 9 65 . 5 Melee 105 | . . . . . . . . . 25 43 . . . 13 1 23 Ram 2 | . . . . . . . 1 . . 1 . . . . . . Kick 1 | . . . . . . . . . . 1 . . . . . . Crush 19 | . 1 . 12 2 . 1 . . . . . . . 3 . . Escape Stasis 178 | . . . . . . . . . 51 109 . . . 18 . . Rewire 64 | . . . . . . . 17 . . 47 . . . . . . Trap . | . . . . . . . . . . . . . . . . . Miscellaneous . | . . . . . . . . . . . . . . . . . Route ------- -11/Scrapyard -10/Materials (discovered 2 exits: *Mat / *Min) -10/Mines (discovered 2 exits: *Mat x2) -9/Materials (discovered 4 exits: *Mat x2 / *Min x2) -9/Mines (discovered 3 exits: *Mat x2 / [*Exi]) -8/Materials (discovered 3 exits: *Fac / *Sto x2) -8/Storage -8/Recycling (discovered 2 exits: *Fac / *Scr) -8/Scraptown (discovered 2 exits: *Fac x2) -6/Factory (discovered 4 exits: Fac x2 / Low / *Ext) -6/Extension (discovered 3 exits: *Fac x2 / *Cet) -6/Cetus (discovered 2 exits: *Fac / *Arc) -6/Archives (discovered 2 exits: *Fac / *Hub) -6/Hub_04(d) -5/Factory (discovered 3 exits: *Fac / Upp x2) -5/Waste -5/Factory (discovered 4 exits: *Fac x2 / Upp x2) History --------- Turn | Location | Event 7 | -11/Scrapyard | Discovered new exit (range 16) 111 | -11/Scrapyard | Entered Materials 296 | -10/Materials | Discovered new exit (range 14) 303 | -10/Materials | Build established: Mutant 310 | -10/Materials | Identified exit to Mines 493 | -10/Materials | Central database locked down 773 | -10/Materials | Discovered new exit (range 13) 1026 | -10/Materials | Entered Mines 1130 | -10/Mines | Discovered new exit (range 15) 1301 | -10/Mines | Found DCF Scrap (12 items) 1302 | -10/Mines | Received a Mining Laser from a helpful Derelict 1325 | -10/Mines | Discovered new exit (range 12) 1349 | -10/Mines | Identified exit to Materials 1488 | -10/Mines | Assisted by bots powering up and referring to "LRC-V3" 1543 | -10/Mines | Learned Materials stockpile data 1663 | -10/Mines | Entered Materials 1663 | -9/Materials | Accompanied by 3 allies 1663 | -9/Materials | Evolved 2 slots: Utility x2 2045 | -9/Materials | Discovered new exit (range 16) 2093 | -9/Materials | Identified exit to Materials 2364 | -9/Materials | Discovered exit to Materials (range 15) 2374 | -9/Materials | Build established: Scavenger-Mutant 2464 | -9/Materials | Lost 6 parts (1p3n2w) 2672 | -9/Materials | Discovered new exit (range 8) 2685 | -9/Materials | Identified exit to Mines 2730 | -9/Materials | Build established: Mutant 2981 | -9/Materials | Core integrity fell below 50% 3218 | -9/Materials | Discovered exit to Mines (range 9) 3503 | -9/Materials | Build established: Scavenger-Mutant 3779 | -9/Materials | Entered Mines 3822 | -9/Mines | Learned Materials stockpile data 3897 | -9/Mines | Assembled infested the area 3902 | -9/Mines | Assisted by a Guerilla fighting off Assembled 4002 | -9/Mines | Build established: Mutant 4287 | -9/Mines | Deemed a non-threat by the Exiles lab entrance 4288 | -9/Mines | Discovered new exit (range 5) 4336 | -9/Mines | Discovered exit to Materials (range 6) 4561 | -9/Mines | Destroyed 9 combat bots 4595 | -9/Mines | Found a damaged Exp. Sensor Array with a note attached 4599 | -9/Mines | Found Prototype Device 4835 | -9/Mines | Discovered exit to Materials (range 6) 4845 | -9/Mines | Entered Materials 4845 | -8/Materials | Evolved 2 slots: Propulsion x2 4846 | -8/Materials | Identified exit to Storage 5330 | -8/Materials | Central database locked down 5512 | -8/Materials | Build established: Scavenger-Mutant 5750 | -8/Materials | Discovered exit to Storage (range 15) 5778 | -8/Materials | Discovered new exit (range 4) 5783 | -8/Materials | Identified exit to Factory 5877 | -8/Materials | Entered Storage 5993 | -8/Storage | Garrison activated, responded to threat 6041 | -8/Storage | Met a pair of Derelict thieves 6053 | -8/Storage | Lost 3 parts (2n1w) 6159 | -8/Storage | Core integrity fell below 50% 6239 | -8/Storage | Core integrity fell below 20% 6261 | -8/Storage | Used back door to open Recycling access 6261 | -8/Storage | Discovered new exit (range 5) 6261 | -8/Storage | Identified Exp. Sensor Array 6268 | -8/Storage | Lost 7 parts (2p2n3w) 6273 | -8/Storage | Found Prototype Protection 6273 | -8/Storage | Identified Lgt. Regenerative Plating 6288 | -8/Storage | Assisted by bots powering up and referring to "LRC-V3" 6354 | -8/Storage | Garrison activated, responded to threat 6389 | -8/Storage | Identified exit to Recycling 6437 | -8/Storage | Entered Recycling 6437 | -8/Recycling | Accompanied by 4 allies 6462 | -8/Recycling | Lost 3 allies 6581 | -8/Recycling | Scanned before Scraplab entrance 6785 | -8/Recycling | Build established: Commander-Mutant 6873 | -8/Recycling | P-60 Hacker assimilated allied Defender 3a 6926 | -8/Recycling | Discovered new exit (range 15) 6932 | -8/Recycling | Lost 4 allies 6978 | -8/Recycling | Entered Scraplab 6981 | -8/Recycling | Discovered new exit (range 3) 6981 | -8/Recycling | Identified exit to Scraptown 6981 | -8/Recycling | Entered Scraptown 6981 | -8/Scraptown | System corruption cleaned by C-Scrubber 7048 | -8/Scraptown | Discovered new exit (range 5) 7068 | -8/Scraptown | Heard Great Nut preacher, LISTEN AND RECITE! 7068 | -8/Scraptown | Visited TADAMA 7071 | -8/Scraptown | Visited Red Mages 7079 | -8/Scraptown | Visited Comm Corps 7127 | -8/Scraptown | Visited Spacefarers 7143 | -8/Scraptown | Visited Fellowship of the Rings 7148 | -8/Scraptown | Visited Symbiants 7159 | -8/Scraptown | Visited UFD Registry 7159 | -8/Scraptown | Registered with UFD as "Powermod" 7168 | -8/Scraptown | Visited Cartography Club 7209 | -8/Scraptown | Learned location of Zion (-7) 7209 | -8/Scraptown | Learned location of Testing (-3) 7209 | -8/Scraptown | Learned 8 Factory zone layouts 7209 | -8/Scraptown | Learned 24 Factory zone layouts 7209 | -8/Scraptown | Learned 8 Upper Caves zone layouts 7209 | -8/Scraptown | Learned 12 Upper Caves zone layouts 7209 | -8/Scraptown | Learned 24 Upper Caves zone layouts 7209 | -8/Scraptown | Learned 24 Proximity Caves zone layouts 7209 | -8/Scraptown | Learned location of 1 exit from Factory 7209 | -8/Scraptown | Learned location of 1 exit from Lower Caves 7219 | -8/Scraptown | Found Deep Structural Scanner 7229 | -8/Scraptown | Visited Junk Cannon Lab 7232 | -8/Scraptown | Found Prototype Special Weapon 7232 | -8/Scraptown | Identified Junk Cannon 7244 | -8/Scraptown | Visited Chapter 10 7251 | -8/Scraptown | Visited Science Guys 7263 | -8/Scraptown | Visited DA-N13 Charitable Foundation 7264 | -8/Scraptown | Found DCF Scrap (25 items) 7273 | -8/Scraptown | Visited Science Testing Area 7333 | -8/Scraptown | Visited Curators Association 7339 | -8/Scraptown | Visited Research Penetration Think Tank 7365 | -8/Scraptown | Met Optimus 7365 | -8/Scraptown | Accepted into 0bPrime 7412 | -8/Scraptown | Civil war broke out across Scraptown 7421 | -8/Scraptown | Discovered new exit (range 5) 7422 | -8/Scraptown | Identified exit to Factory 7422 | -8/Scraptown | Entered Factory 7422 | -6/Factory | Evolved 4 slots: Propulsion x2, Utility x2 7423 | -6/Factory | Identified exit to Lower Caves 7424 | -6/Factory | Identified exit to Factory 7425 | -6/Factory | Identified exit to Extension 7436 | -6/Factory | Loaded intel: 8 recycling unit locations 7451 | -6/Factory | Lost 4 allies 7917 | -6/Factory | Build established: Hacker-Scout 8084 | -6/Factory | Learned location of Protoforge (-2) 8104 | -6/Factory | Spotted B-75 Beast 8185 | -6/Factory | Entered Extension 8274 | -6/Extension | Lost 3 parts (1p1n1w) 8501 | -6/Extension | Rescued a captive Derelict 8709 | -6/Extension | Rescued a captive Derelict 8711 | -6/Extension | Rescued a captive Derelict 8913 | -6/Extension | Spotted B-75 Beast 8931 | -6/Extension | Allies destroyed B-75 Beast 8941 | -6/Extension | Spotted B-75 Beast 8993 | -6/Extension | Lost 9 allies 8999 | -6/Extension | Lost 4 parts (2n1u1w) 9304 | -6/Extension | Build established: Hacker-Mutant 9340 | -6/Extension | Lost 3 parts (1p1n1w) 9597 | -6/Extension | Lost 3 parts (1p2n) 9615 | -6/Extension | Build established: Scavenger-Mutant 9682 | -6/Extension | Destroyed B-75 Beast 9697 | -6/Extension | Lost 4 parts (1n1u2w) 10010 | -6/Extension | Disrupted transfer network 10109 | -6/Extension | Lost 6 parts (4n1u1w) 10139 | -6/Extension | Core integrity fell below 50% 10277 | -6/Extension | Discovered exit to Factory (range 3) 10342 | -6/Extension | Rescued a captive Derelict 10521 | -6/Extension | Build established: Hacker-Mutant 10535 | -6/Extension | Rescued A7 10562 | -6/Extension | Rescued a captive Derelict 10563 | -6/Extension | Rescued a captive Derelict 10664 | -6/Extension | Identified exit to Cetus 10715 | -6/Extension | Discovered exit to Factory (range 10) 10741 | -6/Extension | Learned location of Upper Caves (-4) 10867 | -6/Extension | Learned Factory emergency access door positions 10895 | -6/Extension | Entered Cetus 10895 | -6/Cetus | Accompanied by 6 allies (A7) 10900 | -6/Cetus | Acquired a Cetus Manufacturing Module code from A7 10913 | -6/Cetus | Spotted Cetus Guard 10913 | -6/Cetus | Spotted Cetus Guard 10916 | -6/Cetus | Spotted Cetus Guard 10916 | -6/Cetus | Spotted Cetus Guard 10920 | -6/Cetus | Destroyed Cetus Guard 10922 | -6/Cetus | Destroyed Cetus Guard 10924 | -6/Cetus | Destroyed Cetus Guard 10928 | -6/Cetus | Destroyed Cetus Guard 10951 | -6/Cetus | System corruption reached 10% 10965 | -6/Cetus | System corruption reached 30% 11019 | -6/Cetus | Started Cetus Manufacturing Module 11031 | -6/Cetus | Escorted A7 to Cetus Mainframe 11044 | -6/Cetus | Manufactured an Enhanced Grunt 11055 | -6/Cetus | Discovered new exit (range 16) 11069 | -6/Cetus | Manufactured an Enhanced Grunt 11078 | -6/Cetus | Identified exit to Archives 11094 | -6/Cetus | Manufactured an Enhanced Grunt 11119 | -6/Cetus | Manufactured an Enhanced Grunt 11144 | -6/Cetus | Manufactured an Enhanced Grunt 11273 | -6/Cetus | Spotted Cetus Guard 11274 | -6/Cetus | Spotted Cetus Guard 11278 | -6/Cetus | Spotted Cetus Guard 11285 | -6/Cetus | Spotted Cetus Guard 11297 | -6/Cetus | Destroyed Cetus Guard 11297 | -6/Cetus | Destroyed Cetus Guard 11298 | -6/Cetus | Allies destroyed Cetus Guard 11303 | -6/Cetus | Allies destroyed Cetus Guard 11328 | -6/Cetus | Lost 5 allies 11334 | -6/Cetus | Discovered exit to Factory (range 15) 11344 | -6/Cetus | Met Revision 17 11553 | -6/Cetus | Build established: Scavenger-Mutant 11562 | -6/Cetus | Entered Archives 11562 | -6/Archives | Accompanied by 6 allies (A7) 11567 | -6/Archives | Received a hacking code to weaken MAIN.C 11635 | -6/Archives | Lost 3 allies 11636 | -6/Archives | Discovered exit to Factory (range 14) 11649 | -6/Archives | Unable to access archive contents 11674 | -6/Archives | Unable to access archive contents 11749 | -6/Archives | Discovered new exit (range 15) 12388 | -6/Archives | Identified exit to Hub_04(d) 12390 | -6/Archives | Entered Hub_04(d) 12390 | -6/Hub_04(d) | Accompanied by 2 allies 12612 | -6/Hub_04(d) | Discovered exit to Factory (range 16) 12740 | -6/Hub_04(d) | Network Hub disabled 13027 | -6/Hub_04(d) | Entered Factory 13027 | -5/Factory | Evolved 2 slots: Power x1, Utility x1 13048 | -5/Factory | Identified exit to Upper Caves 13429 | -5/Factory | Local machine network offline 13800 | -5/Factory | Discovered new exit (range 9) 13805 | -5/Factory | Identified exit to Factory 13898 | -5/Factory | Lost 3 parts (2n1u) 14081 | -5/Factory | Sucked down chute 14081 | -5/Factory | Entered Waste 14090 | -5/Waste | Spotted C-40 Crusher 14096 | -5/Waste | EMP discharged 14098 | -5/Waste | Met Warlord forces unprepared to attack 14114 | -5/Waste | Allies destroyed C-40 Crusher 14118 | -5/Waste | Spotted C-40 Crusher 14134 | -5/Waste | Allies destroyed C-40 Crusher 14135 | -5/Waste | Spotted C-40 Crusher 14136 | -5/Waste | Allies destroyed C-40 Crusher 14148 | -5/Waste | Spotted C-40 Crusher 14150 | -5/Waste | Spotted C-40 Crusher 14152 | -5/Waste | Spotted C-40 Crusher 14156 | -5/Waste | Allies destroyed C-40 Crusher 14173 | -5/Waste | Allies destroyed C-40 Crusher 14177 | -5/Waste | Allies destroyed C-40 Crusher 14193 | -5/Waste | Discovered new exit (range 15) 14196 | -5/Waste | EMP discharged 14196 | -5/Waste | System corruption reached 10% 14201 | -5/Waste | Identified exit to Factory 14208 | -5/Waste | Lost 9 allies 14226 | -5/Waste | Entered Factory 14226 | -5/Factory | Accompanied by 9 allies 14236 | -5/Factory | Discovered exit to Factory (range 15) 14284 | -5/Factory | Central database locked down 14339 | -5/Factory | Discovered exit to Factory (range 12) 14358 | -5/Factory | Fabricated Quantum Reactor? 14404 | -5/Factory | Loaded intel: 8 recycling unit locations 14444 | -5/Factory | Build established: Hacker-Sprinter 14562 | -5/Factory | Core integrity fell below 50% 14592 | -5/Factory | Lost 4 allies 14593 | -5/Factory | Core integrity fell below 20% 14608 | -5/Factory | Destroyed by H-66 Slayer with Gauss Rifle Last Messages --------------- 14592_ Penetrated by Slug. 14594_ The unstable cave ceiling collapses. 14594_ Penetrated by Slug. 14595_ U-05 Engineer lays Concrete. 14595_ Slug penetrates Earth. 14596_ U-05 Engineer lays Concrete. 14598_ Penetrated by Slug. 14598_ Hardcell Cannon destroyed. 14599_ U-05 Engineer lays Concrete. 14600_ System corrupted: Component data lost. 14600_ U-05 Engineer lays Concrete. 14601_ Slug penetrates Earth. 14601_ U-05 Engineer lays Concrete. 14603_ Slug penetrates Earth. 14603_ U-05 Engineer lays Concrete. 14604_ Slug penetrates R-10 Processor. 14604_ R-10 Processor destroyed. 14604_ Penetrated by Slug. 14605_ U-05 Engineer lays Concrete. 14608_ Penetrated by Slug. Map ----- +----------------------------------------------------+ | ?????????????????????????????????????????????????? | | ?????????????????????????????????????????????????? | | ?????????????????????????????????????????????????? | | ?????????????????????????????????????????????????? | | ?????????????????????????????????????????????????? | | ??????????????????????????????????###????????????? | | ????????????????????????????#######"######???????? | | ???????????????????????????## #???????? | | ???????????????????????????#" #???????? | | ?????????????????????????##?# #???????? | | ?????????????????????????# ## #???????? | | ??????????????????????????# ; ###?????? | | ?????????????????????????## #?????? | | ?????????????????????????# #?????? | | ??????????????????????????# ""#????? | | ??????????????????????????# [ ??? | | ?????????????????????????? ###???? | | ??????????????????????????# !== #????# | | ????????????????????????### ==%=* #????# | | ????????????????????????#;; =/! ""#????# | | ???????????????????????## ##???# | | ???????????????????????#; u Y "#???# | | ???????????????????????#; u h "###?# | | ???????????????????????#; "#?# | | ?????????????????? # "#?# | | ???????????????# #@ = "#?# | | ???????????????# # "### | | ########???????# # | | #???????# + | | " #???????# ? # | | #??????## ??? # | | #????? #? ?????# | | #???? #?????????# ;# # ; """ ###### | | #???? ##+##+#???# #;;############????# | | ! #??? #???# # "#????# | | #??? #???# ^# """""" ##????# | | ########### #???# + """""" #?????# | | #???# # """""" ##????# | | ! #???# # """""" "#????# | | #???# # ##????# | | """ """ """" """" #???# # """""" #?????# | | """ """ """" """" #???# # """""" #?????# | | """ """ """" """" #???# + """""" #?????# | | #???# # """""" #?????# | | !##### # #?????# | | # #?????# | | #########+################?????? | | #### #?# #??????????????? | | #### #?# "" #??????????????? | | # ### "" #??????????????? | +----------------------------------------------------+ Best States ------------- Heat Dissipation 40 Energy Generation 38 Energy Capacity 450 Matter Stores 300 Matter Capacity 300 Sight Range 16 Robot Scan Range 20 Terrain Scan Range 16 Terrain Scan Density 10 Jamming Range 12 Armor Coverage 375 Core Shielding 30 Utility Shielding 33 Phase Shifting 5 Evasion (%) 65 Targeting Accuracy 8 Melee Accuracy 8 Recoil Reduction 6 Offensive Hacking 36 Defensive Hacking 12 Item Schematics ----------------- Sml. Storage Unit | -9/Materials | Scanalyzed Lrg. Storage Unit | -9/Materials | Scanalyzed Imp. Plasma Cutter | -6/Extension | Hacked Gyrokinetic Inverter | -5/Factory | Hacked Biometal Leg | -5/Factory | Hacked Robot Schematics ------------------ A-15 Conveyor | -5/Factory | Hacked Fabricated ------------ Quantum Reactor | x2 | -5/Factory | Preloaded Repaired ---------- Nothing Alien Tech Used ----------------- None Achievements -------------- None Challenges ------------ None Game ------ Seed ArcsightCoilFirepult Manual? 0 Play Time 02:39:57 Cumulative 103.0 hours Start 2025.07.10 @ 18:53:42 End 2025.07.10 @ 21:42:19 Sessions 3 Manual Loads 0 Difficulty Rogue Special Mode None Game No. 105 Rogue 105 Adventurer 0 Explorer 0 Win Type - Total 2 Types 1/0/1/0/0/0/0/0/0/0 Lore% 59 Gallery% 58 Achievement% 52 Wizard Run 0 Options --------- Layout 1 ASCII 0 Keyboard 0 Movement Numpad Keybinds 0 Fullscreen 1 Font 24/Smallcaps Map View 50x35 Zoom Use 0% Tactical HUD 1 Map Filters NONE Filters NONE Steam 1 RUN: 532988e5-be84-4255-a7f1-271186739db0